bitfinex/quotes_BTCUSD_20220218
["timestamp","ask_amount","ask_price","bid_price","bid_amount"]
[1645192917929,0.5582317,40447.0,40431.0,0.1]
[1645192918126,0.0999,40448.0,40435.0,0.2998]
[1645192918127,0.0089,40441.0,40435.0,0.2998]
[1645192918331,0.0089,40441.0,40432.0,0.682514]
[1645192918332,0.1,40439.0,40438.0,0.1]
[1645192918530,0.43965574,40454.0,40440.0,0.4]
[1645192918729,0.00033905,40459.0,40453.0,0.2551026]
[1645192918932,0.00021908,40461.0,40455.0,0.1]
[1645192918933,0.00033905,40460.0,40455.0,0.1]
[1645192919131,7.955e-05,40461.0,40457.0,1.643578]
[1645192919374,7.955e-05,40461.0,40460.0,1.643578]
[1645192919569,0.011,40469.0,40461.0,1.311]
[1645192919770,0.011,40469.0,40468.0,0.28688677]
[1645192919973,0.011,40469.0,40468.0,0.08114]
[1645192920171,0.011,40469.0,40468.0,0.13114]
[1645192920375,0.011,40469.0,40463.0,0.01211558]
[1645192920376,0.108665,40468.0,40463.0,0.01211558]
[1645192920570,0.17,40464.0,40454.0,0.1]
[1645192920773,0.2640538,40462.0,40454.0,0.1]
[1645192920973,0.108665,40459.0,40456.0,0.20607617]
[1645192921174,0.108665,40459.0,40456.0,0.32971817]
[1645192921373,0.1,40457.0,40456.0,0.123642]
[1645192921574,0.308665,40457.0,40449.0,0.001]
[1645192921772,0.1,40450.0,40449.0,0.001]
[1645192921974,0.108665,40450.0,40448.0,0.236433]
[1645192922172,0.108665,40450.0,40442.0,0.0008976]
[1645192922173,0.208665,40449.0,40442.0,0.0008976]
[1645192922478,0.41072343,40449.0,40444.0,0.20772578]
[1645192922671,0.1,40447.0,40445.0,0.061841]
[1645192922871,0.108665,40446.0,40445.0,0.061841]
[1645192923124,0.208665,40446.0,40445.0,0.061841]
[1645192923517,0.308665,40446.0,40442.0,0.1245756]
[1645192923717,0.308665,40446.0,40442.0,0.0008976]
[1645192923917,0.108665,40444.0,40442.0,0.0008976]
[1645192924316,0.208665,40443.0,40442.0,0.0008976]
[1645192924918,0.1,40443.0,40442.0,0.0008976]
[1645192925317,0.1,40443.0,40442.0,0.0508976]
[1645192925516,0.1,40443.0,40442.0,0.0518976]
[1645192926716,0.1,40443.0,40442.0,0.0508976]
[1645192926960,0.1,40443.0,40442.0,0.31894775]
[1645192927363,0.10155901,40445.0,40442.0,0.80968181]
[1645192927568,0.10155901,40445.0,40443.0,0.382278]
[1645192927569,0.00155901,40445.0,40443.0,0.382278]
[1645192927764,0.00155901,40445.0,40444.0,0.50385055]
[1645192927960,0.00155901,40445.0,40444.0,0.482278]
[1645192928260,0.00155901,40445.0,40444.0,0.532278]
[1645192928861,0.1,40453.0,40451.0,0.06793408]
[1645192929260,0.1,40453.0,40451.0,0.11793408]
[1645192929460,0.102,40453.0,40451.0,0.11793408]
[1645192930614,0.1,40453.0,40452.0,0.332578]
[1645192931010,0.1,40455.0,40452.0,0.332578]
[1645192931209,0.1,40458.0,40452.0,0.332578]
[1645192931412,0.1,40458.0,40453.0,0.123625]
[1645192931610,0.1,40457.0,40453.0,0.185438]
[1645192931812,0.1,40457.0,40453.0,0.235438]
[1645192932313,0.1,40457.0,40454.0,0.1746]
[1645192932512,0.1,40457.0,40455.0,0.05]
[1645192933113,0.1,40457.0,40455.0,0.23961405]
[1645192933515,0.1,40457.0,40455.0,0.24061405]
[1645192933915,0.1741464,40461.0,40455.0,0.24061405]
[1645192934117,0.1741464,40461.0,40457.0,0.061808]
[1645192934365,0.0741464,40461.0,40457.0,0.061808]
[1645192934564,0.0741464,40461.0,40460.0,0.1746]
[1645192935364,0.0741464,40461.0,40460.0,0.2246]
[1645192935569,0.0741464,40461.0,40460.0,0.2256]
[1645192936765,0.0741464,40461.0,40460.0,0.2246]
[1645192937464,0.0741464,40461.0,40460.0,0.2256]
[1645192937866,0.1741464,40461.0,40460.0,0.2256]
[1645192938124,0.0741464,40461.0,40460.0,0.2256]
[1645192938313,0.2,40462.0,40460.0,0.2256]
[1645192938314,0.1,40462.0,40460.0,0.287408]
[1645192938514,0.108665,40461.0,40460.0,0.287408]
[1645192938814,0.1,40462.0,40460.0,0.286408]
[1645192938815,0.2,40462.0,40460.0,0.286408]
[1645192939015,0.108665,40461.0,40460.0,0.286408]
[1645192939215,0.2,40462.0,40460.0,0.2246]
[1645192939414,0.1,40462.0,40460.0,0.2256]
[1645192939615,0.086669,40461.0,40460.0,0.2256]
[1645192939814,0.1,40462.0,40460.0,0.2256]
[1645192940620,0.2,40462.0,40460.0,0.2256]
[1645192940817,0.2,40462.0,40460.0,0.2246]
[1645192941017,0.00013649,40463.0,40460.0,0.286406]
[1645192941419,0.00013649,40463.0,40460.0,0.287406]
[1645192942063,0.00156423,40461.0,40460.0,0.287406]
[1645192942463,0.00156423,40461.0,40460.0,0.2256]
[1645192942865,0.00156423,40461.0,40460.0,0.2246]
[1645192943363,0.00156423,40461.0,40460.0,0.05]
[1645192943562,0.00156423,40461.0,40460.0,0.051]
[1645192943763,0.00156423,40461.0,40460.0,0.001]
[1645192944565,0.00156423,40461.0,40460.0,0.00110623]
[1645192945063,0.00156423,40461.0,40460.0,0.00010623]
[1645192945464,0.00156423,40461.0,40460.0,0.00110623]
[1645192946914,0.00156423,40461.0,40460.0,0.00010623]
[1645192947114,0.00156423,40461.0,40460.0,0.00135649]
[1645192947513,0.00156423,40461.0,40460.0,0.00235649]
[1645192948815,0.00156423,40461.0,40460.0,0.00135649]
[1645192949559,0.00156423,40461.0,40460.0,0.00235649]
[1645192950762,0.00156423,40461.0,40460.0,0.00135649]
[1645192950970,0.10156423,40461.0,40460.0,0.00135649]
[1645192951164,0.18823323,40461.0,40460.0,0.00135649]
[1645192951462,0.08823323,40461.0,40460.0,0.00135649]
[1645192951662,0.00156423,40461.0,40460.0,0.00135649]
[1645192952263,0.08823323,40461.0,40460.0,0.00135649]
[1645192952462,0.00156423,40461.0,40460.0,0.00135649]
[1645192952867,0.00156423,40461.0,40460.0,0.33390849]
[1645192953125,0.00156423,40461.0,40460.0,0.84171849]
[1645192953316,0.00156423,40461.0,40460.0,2.25271849]
[1645192953518,0.00156423,40461.0,40460.0,2.20491998]
[1645192953714,0.00156423,40461.0,40460.0,2.25461998]
[1645192954117,0.002,40466.0,40462.0,1.311]
[1645192954315,0.002,40466.0,40463.0,0.517908]
[1645192954516,0.002,40466.0,40463.0,0.817708]
[1645192954717,0.002,40466.0,40463.0,0.917708]
[1645192954916,0.002,40466.0,40463.0,2.228708]
[1645192955119,0.002,40466.0,40464.0,1.611]
[1645192955317,0.002,40466.0,40465.0,0.87138491]
[1645192955517,0.0925391,40467.0,40465.0,0.92138491]
[1645192955718,0.0925391,40467.0,40466.0,0.35]
[1645192955919,0.0925391,40467.0,40466.0,0.832252]
[1645192956323,0.0925391,40467.0,40466.0,2.143252]
[1645192956859,0.0925391,40467.0,40466.0,0.832252]
[1645192957060,0.0922081,40467.0,40466.0,0.832252]
[1645192957262,0.0655798,40467.0,40466.0,0.832252]
[1645192957459,0.0655798,40467.0,40466.0,0.4997]
[1645192957660,0.0655798,40467.0,40466.0,1.02863415]
[1645192957861,0.0655798,40467.0,40466.0,0.832252]
[1645192958262,0.0655798,40467.0,40466.0,1.02813543]
[1645192958463,0.0655798,40467.0,40466.0,1.03013543]
[1645192959666,0.0655798,40467.0,40466.0,1.02813543]
[1645192960466,0.0655798,40467.0,40466.0,1.03113543]
[1645192961111,0.0655798,40467.0,40466.0,1.09292143]
[1645192961315,0.011,40469.0,40467.0,0.0444202]
[1645192961512,0.011,40469.0,40468.0,1.643552]
[1645192961714,0.011,40469.0,40468.0,0.432552]
[1645192961911,0.01125336,40469.0,40468.0,0.72893415]
[1645192962114,0.01125336,40469.0,40468.0,0.532552]
[1645192962313,0.01125336,40469.0,40468.0,0.582252]
[1645192962513,0.01125336,40469.0,40468.0,1.893252]
[1645192962714,0.01125336,40469.0,40468.0,2.08963415]
[1645192962912,0.01125336,40469.0,40468.0,0.77863415]
[1645192963213,0.01150672,40469.0,40468.0,0.77863415]
[1645192963512,0.01150672,40469.0,40468.0,0.44608215]
[1645192963917,0.01150672,40469.0,40468.0,0.2497]
[1645192964116,0.01150672,40469.0,40468.0,0.482252]
[1645192964364,0.01173355,40469.0,40468.0,0.582252]
[1645192964562,0.01173355,40469.0,40468.0,0.77863415]
[1645192965066,0.01173355,40469.0,40468.0,2.08963415]
[1645192965262,0.01173355,40469.0,40468.0,0.77863415]
[1645192965863,0.0043,40472.0,40468.0,0.77863415]
[1645192966072,0.0003972,40475.0,40472.0,1.1]
[1645192966367,0.0003972,40475.0,40473.0,0.49401624]
[1645192966568,0.0007944,40477.0,40475.0,1.643552]
[1645192966768,0.00170157,40477.0,40475.0,1.793252]
[1645192966965,0.00170157,40477.0,40476.0,1.83993415]
[1645192967166,0.00170157,40477.0,40476.0,1.88963415]
[1645192967366,0.00170157,40477.0,40476.0,1.98963415]
[1645192967668,0.0011,40480.0,40478.0,1.311]
[1645192967866,0.0011,40480.0,40479.0,1.693252]
[1645192968121,0.0011,40480.0,40479.0,1.88963415]
[1645192968315,0.0011,40480.0,40479.0,1.98963415]
[1645192968713,0.0011,40480.0,40479.0,0.67863415]
[1645192969118,0.3993,40482.0,40479.0,0.482252]
[1645192969315,0.3993,40482.0,40479.0,0.74040029]
[1645192969514,0.3993,40482.0,40480.0,0.1998]
[1645192969714,0.3993,40482.0,40481.0,0.332552]
[1645192969914,0.3993,40482.0,40481.0,0.482552]
[1645192970114,0.3993,40482.0,40481.0,2.093552]
[1645192970513,0.3993,40482.0,40481.0,2.143252]
[1645192970716,0.3993,40482.0,40481.0,1.843252]
[1645192971721,0.3993,40482.0,40481.0,0.532252]
[1645192971964,0.3993,40482.0,40480.0,0.12353154]
[1645192972164,0.1,40481.0,40480.0,0.12353154]
[1645192972365,0.3993,40482.0,40481.0,0.001]
[1645192972566,0.4993,40482.0,40481.0,0.001]
[1645192972963,0.8283184,40482.0,40481.0,0.001]
[1645192973262,0.4993,40482.0,40481.0,0.001]
[1645192973663,0.4993,40482.0,40480.0,0.12353154]
[1645192974063,0.4993,40482.0,40480.0,0.17353154]
[1645192974273,0.4993,40482.0,40481.0,0.332552]
[1645192974465,0.4993,40482.0,40480.0,0.22553154]
[1645192974667,0.4993,40482.0,40481.0,0.332552]
[1645192974866,0.4993,40482.0,40480.0,0.28730054]
[1645192975266,0.3993,40482.0,40480.0,0.28730054]
[1645192975465,0.3993,40482.0,40481.0,0.332552]
[1645192975714,0.3993,40482.0,40480.0,0.22553154]
[1645192976118,0.3993,40482.0,40481.0,0.332552]
[1645192976317,0.3993,40482.0,40480.0,0.28730054]
[1645192976515,0.3993,40482.0,40481.0,0.332552]
[1645192977517,0.3993,40482.0,40481.0,0.382552]
[1645192977917,0.3993,40482.0,40481.0,0.444319]
[1645192978618,0.3993,40482.0,40481.0,0.446319]
[1645192978819,0.3993,40482.0,40481.0,0.052]
[1645192979219,0.3993,40482.0,40481.0,0.384552]
[1645192979464,0.3993,40482.0,40481.0,0.052]
[1645192979661,0.3993,40482.0,40481.0,0.05]
[1645192979862,0.3993,40482.0,40481.0,0.382552]
[1645192980065,0.3993,40482.0,40481.0,0.482552]
[1645192980661,0.3993,40482.0,40481.0,0.15]
[1645192981262,0.3993,40482.0,40481.0,0.05]
[1645192982064,0.40033653,40482.0,40481.0,0.05]
[1645192985816,0.40033653,40482.0,40480.0,0.1012493]
[1645192986016,0.40033653,40482.0,40481.0,0.332552]
[1645192986017,0.4006722,40482.0,40481.0,0.332552]
[1645192986218,0.40033653,40482.0,40481.0,0.332552]
[1645192986416,0.40033653,40482.0,40481.0,0.05]
[1645192986618,0.40004723,40482.0,40481.0,0.382552]
[1645192986864,0.40004723,40482.0,40481.0,0.05]
[1645192987062,0.40004723,40482.0,40481.0,0.382552]
[1645192987266,0.3990107,40482.0,40481.0,0.382552]
[1645192988264,0.3990107,40482.0,40481.0,0.05]
[1645192988463,0.3990107,40482.0,40481.0,0.382552]
[1645192989464,0.3990107,40482.0,40481.0,0.05]
[1645192989666,0.3990107,40482.0,40481.0,0.382552]
[1645192990265,0.3990107,40482.0,40481.0,0.05]
[1645192990465,0.3990107,40482.0,40481.0,0.382552]
[1645192990716,0.3990107,40482.0,40481.0,0.05]
[1645192991013,0.3990107,40482.0,40481.0,0.382552]
[1645192991614,0.3990107,40482.0,40481.0,0.05]
[1645192992016,0.3990107,40482.0,40480.0,0.0012493]
[1645192992017,0.4856797,40482.0,40480.0,0.0012493]
[1645192992219,0.086669,40481.0,40480.0,0.0012493]
[1645192992420,0.186669,40481.0,40480.0,0.0012493]
[1645192992615,0.1,40481.0,40480.0,0.0012493]
[1645192992817,0.186669,40481.0,40480.0,0.0012493]
[1645192993014,0.1,40481.0,40480.0,0.0012493]
[1645192993417,0.66282034,40482.0,40480.0,0.0012493]
[1645192994570,0.66282034,40482.0,40480.0,0.0022493]
[1645192995670,0.66282034,40482.0,40480.0,0.0012493]
[1645192996274,0.086669,40481.0,40480.0,0.0012493]
[1645192996476,0.66282034,40482.0,40480.0,0.0022493]
[1645192996673,0.086669,40481.0,40480.0,0.0022493]
[1645192997478,0.66282034,40482.0,40480.0,0.0022493]
[1645192997675,0.65282034,40482.0,40480.0,0.0022493]
[1645192997875,0.086669,40481.0,40480.0,0.0012493]
[1645192998138,0.03401699,40481.0,40480.0,0.0012493]
[1645192998328,0.65282034,40482.0,40480.0,0.0012493]
[1645192998931,0.38934637,40482.0,40480.0,0.0012493]
[1645192999825,0.03404,40481.0,40480.0,0.0012493]
[1645193000031,0.38934637,40482.0,40480.0,0.0012493]
[1645193001028,0.03404,40481.0,40480.0,0.0012493]
[1645193001327,0.75683174,40482.0,40479.0,0.1265693]
[1645193001328,0.38934637,40482.0,40479.0,0.1265693]
[1645193001531,0.1,40480.0,40479.0,0.111775]
[1645193001729,0.1,40480.0,40479.0,0.161775]
[1645193001970,0.00033567,40481.0,40479.0,0.523544]
[1645193002172,0.38934637,40482.0,40480.0,0.3]
[1645193002369,0.38934637,40482.0,40480.0,0.05]
[1645193002370,0.00033567,40481.0,40480.0,0.05]
[1645193002572,0.38934637,40482.0,40480.0,0.05]
[1645193003371,0.3890093,40482.0,40480.0,0.05]
[1645193004070,0.3890093,40482.0,40480.0,0.045]
[1645193005622,0.3890093,40482.0,40480.0,0.046]
[1645193006618,0.3890093,40482.0,40480.0,0.047]
[1645193006818,0.3890093,40482.0,40480.0,0.046]
[1645193007420,0.3790093,40482.0,40480.0,0.046]
[1645193007623,0.00233705,40483.0,40481.0,0.632406]
[1645193007828,0.00233705,40483.0,40482.0,0.96054619]
[1645193008021,0.00257352,40483.0,40482.0,1.29295219]
[1645193008222,0.00257352,40483.0,40482.0,1.39295219]
[1645193008421,0.0021,40484.0,40482.0,2.60028207]
[1645193008623,0.00037352,40484.0,40483.0,2.855156]
[1645193008824,0.00037352,40484.0,40483.0,2.10118588]
[1645193009378,0.005327,40485.0,40483.0,2.10118588]
[1645193009379,0.01370215,40489.0,40487.0,1.311]
[1645193009569,0.01370215,40489.0,40488.0,1.693106]
[1645193009771,0.01370215,40489.0,40488.0,0.62836193]
[1645193009973,0.0018915,40489.0,40488.0,0.77836193]
[1645193010271,0.0018915,40489.0,40488.0,0.58203205]
[1645193010474,0.00206305,40491.0,40489.0,0.25071982]
[1645193010670,0.00206305,40491.0,40490.0,0.44386]
[1645193010871,0.00206305,40491.0,40490.0,0.261454]
[1645193011070,0.00206305,40491.0,40490.0,0.1997]
[1645193011269,0.00206305,40491.0,40490.0,0.532032]
[1645193011873,0.00206305,40491.0,40490.0,0.1997]
[1645193012272,0.00206305,40491.0,40490.0,0.432032]
[1645193012472,0.00206305,40491.0,40490.0,0.0997]
[1645193012673,0.00206305,40491.0,40490.0,0.532032]
[1645193012873,0.00206305,40491.0,40490.0,0.0997]
[1645193013142,0.00206305,40491.0,40490.0,0.29602988]
[1645193013334,0.00206305,40491.0,40490.0,0.2995]
[1645193013531,0.00206305,40491.0,40490.0,0.3495]
[1645193014535,0.03118805,40491.0,40490.0,0.2498]
[1645193014732,0.03118805,40491.0,40490.0,0.05]
[1645193014733,0.05245265,40491.0,40490.0,0.05]
[1645193014932,0.0262646,40491.0,40490.0,0.05]
[1645193015131,0.0262646,40491.0,40488.0,0.061766]
[1645193015132,0.0524536,40491.0,40488.0,0.061766]
[1645193015332,0.36768611,40491.0,40488.0,0.111766]
[1645193015747,0.36768611,40491.0,40489.0,0.19622389]
[1645193016988,0.36879364,40491.0,40490.0,0.00103054]
[1645193017187,0.02729653,40491.0,40490.0,0.00103054]
[1645193017587,0.39498264,40491.0,40490.0,0.00103054]
[1645193017788,0.02729653,40491.0,40490.0,0.00103054]
[1645193017990,0.39498264,40491.0,40490.0,0.00103054]
[1645193018189,0.36879364,40491.0,40490.0,0.00103054]
[1645193018494,0.00110753,40491.0,40490.0,0.00103054]
[1645193018690,0.36879364,40491.0,40490.0,0.00103054]
[1645193018990,0.00110753,40491.0,40490.0,0.00103054]
[1645193019289,0.36879364,40491.0,40490.0,0.00203054]
[1645193019890,0.36879364,40491.0,40490.0,0.00103054]
[1645193020091,0.00110753,40491.0,40490.0,0.00103054]
[1645193021326,0.00110753,40491.0,40490.0,0.00113669]
[1645193021526,0.00110753,40491.0,40490.0,0.30113669]
[1645193021925,0.07728959,40492.0,40490.0,0.30010615]
[1645193022325,0.07728959,40492.0,40490.0,0.59990615]
[1645193022525,0.07728959,40492.0,40491.0,0.3]
[1645193022726,0.07728959,40492.0,40491.0,0.35]
[1645193022924,0.07728959,40492.0,40491.0,0.45]
[1645193023125,0.07728959,40492.0,40491.0,0.35]
[1645193023325,0.07728959,40492.0,40491.0,0.05]
[1645193023525,0.07728959,40492.0,40491.0,0.15]
[1645193023732,0.07728959,40492.0,40491.0,0.05]
[1645193024127,0.07728959,40492.0,40490.0,0.19990615]
[1645193024967,0.07828959,40492.0,40490.0,0.19990615]
[1645193025166,0.06000528,40492.0,40490.0,0.19990615]
[1645193025367,0.06000528,40492.0,40491.0,0.05]
[1645193025767,0.05900528,40492.0,40491.0,0.05]
[1645193027268,0.05900528,40492.0,40491.0,0.35]
[1645193027468,0.05900528,40492.0,40491.0,0.45]
[1645193027868,0.05900528,40492.0,40491.0,0.35]
[1645193028124,0.05900528,40492.0,40491.0,0.45]
[1645193028921,0.05900528,40492.0,40491.0,0.151]
[1645193029119,0.05900528,40492.0,40491.0,0.051]
[1645193030120,0.05900528,40492.0,40491.0,0.05]
[1645193030919,0.05900528,40492.0,40491.0,0.051]
[1645193031322,0.05900528,40492.0,40491.0,0.112751]
[1645193031625,0.05900528,40492.0,40491.0,0.412751]
[1645193032066,0.05900528,40492.0,40491.0,0.111751]
[1645193032266,0.05900528,40492.0,40491.0,0.30808088]
[1645193032466,0.05900528,40492.0,40491.0,0.111751]
[1645193032666,0.05900528,40492.0,40491.0,0.411751]
[1645193032967,0.05900528,40492.0,40491.0,0.412751]
[1645193033366,0.05900528,40492.0,40491.0,0.051]
[1645193034170,0.05900528,40492.0,40491.0,0.05]
[1645193034967,0.05900528,40492.0,40491.0,0.411751]
[1645193035629,0.05900528,40492.0,40491.0,0.511751]
[1645193037019,0.05990068,40492.0,40491.0,0.512751]
[1645193037619,0.05990068,40492.0,40491.0,0.212751]
[1645193037819,0.05990068,40492.0,40491.0,0.112751]
[1645193038221,0.05990068,40492.0,40491.0,0.05]
[1645193038923,0.05990068,40492.0,40491.0,1.993328]
[1645193039122,0.05990068,40492.0,40491.0,0.682328]
[1645193039372,0.05990068,40492.0,40491.0,0.97859661]
[1645193039771,0.05990068,40492.0,40491.0,0.67859661]
[1645193040270,0.05990068,40492.0,40491.0,0.34626861]
[1645193040469,0.05990068,40492.0,40491.0,0.24626861]
[1645193040668,0.05990068,40492.0,40491.0,0.05]
[1645193040868,0.05990068,40492.0,40491.0,0.052]
[1645193041069,0.05990068,40492.0,40491.0,0.684328]
[1645193041268,0.05990068,40492.0,40491.0,0.784328]
[1645193041669,0.05990068,40492.0,40491.0,2.29159661]
[1645193041877,0.00447186,40493.0,40492.0,0.45212936]
[1645193042070,0.0033,40493.0,40492.0,1.81282936]
[1645193042269,0.0033,40493.0,40492.0,2.10909797]
[1645193042871,0.0033,40493.0,40492.0,2.11109797]
[1645193043125,0.0032,40498.0,40492.0,2.11109797]
[1645193043126,0.00103641,40498.0,40494.0,1.311]
[1645193043321,0.00103641,40498.0,40496.0,0.1998]
[1645193043520,0.00103641,40498.0,40497.0,0.382028]
[1645193043918,0.00103641,40498.0,40497.0,0.482028]
[1645193044119,0.00103641,40498.0,40497.0,1.98929661]
[1645193045323,0.00103641,40498.0,40497.0,0.67829661]
[1645193045524,0.00103641,40498.0,40497.0,0.97829661]
[1645193046522,0.00103641,40498.0,40497.0,0.67829661]
[1645193047195,0.00103641,40498.0,40497.0,0.67932517]
[1645193049501,0.00103641,40498.0,40497.0,0.19729717]
[1645193049702,0.00103641,40498.0,40497.0,0.52962517]
[1645193049900,0.00103641,40498.0,40497.0,0.33335656]
[1645193050832,0.00103641,40498.0,40497.0,0.38335656]
[1645193051032,0.00103641,40498.0,40497.0,0.48335656]
[1645193051732,0.00103641,40498.0,40497.0,0.67962517]
[1645193052934,0.00103641,40498.0,40497.0,0.68162517]
[1645193053936,0.00103641,40498.0,40497.0,0.48535656]
[1645193054134,0.00103641,40498.0,40497.0,0.68159771]
[1645193054370,0.00103641,40498.0,40497.0,0.67959771]
[1645193055174,0.00103641,40498.0,40497.0,0.57959771]
[1645193055376,0.00103641,40498.0,40497.0,0.24726971]
[1645193055577,0.00103641,40498.0,40497.0,0.19726971]
[1645193055578,0.34221212,40498.0,40497.0,0.19726971]
[1645193055776,0.02722541,40498.0,40497.0,0.00102856]
[1645193055975,0.2525193,40498.0,40497.0,0.00102856]
[1645193056276,0.02722541,40498.0,40497.0,0.00102856]
[1645193056675,0.00103641,40498.0,40497.0,0.00102856]
[1645193057076,0.00103641,40498.0,40497.0,0.00202856]
[1645193057375,0.54986169,40498.0,40497.0,0.00202856]
[1645193057976,0.23480665,40498.0,40497.0,0.00202856]
[1645193058225,0.23480665,40498.0,40497.0,0.00102856]
[1645193058418,0.02722541,40498.0,40497.0,0.00102856]
[1645193059018,0.02722541,40498.0,40497.0,0.00202856]
[1645193060127,0.4947628,40498.0,40497.0,0.00202856]
[1645193060321,0.4947628,40498.0,40497.0,0.00102856]
[1645193060522,0.12722541,40498.0,40497.0,0.00102856]
[1645193060921,0.49482766,40498.0,40497.0,0.00202856]
[1645193061119,0.20729778,40498.0,40497.0,0.00202856]
[1645193061321,0.57489985,40498.0,40497.0,0.00202856]
[1645193061531,0.49482748,40498.0,40497.0,0.00202856]
[1645193061720,0.12722541,40498.0,40497.0,0.00202856]
[1645193061972,0.49482748,40498.0,40497.0,0.00202856]
[1645193062171,0.49482748,40498.0,40497.0,0.00102856]
[1645193062172,0.12722541,40498.0,40497.0,0.00102856]
[1645193063074,0.12722541,40498.0,40497.0,0.00202856]
[1645193063474,0.12722541,40498.0,40497.0,0.0019374]
[1645193063875,0.49482748,40498.0,40497.0,0.0019374]
[1645193064276,0.49482748,40498.0,40497.0,0.0009374]
[1645193064676,0.12722541,40498.0,40497.0,0.0009374]
[1645193065077,0.49482748,40498.0,40497.0,0.0019374]
[1645193065722,0.12722541,40498.0,40497.0,0.0019374]
[1645193066123,0.00103641,40498.0,40497.0,0.0019374]
[1645193066321,0.00103641,40498.0,40497.0,0.0009374]
[1645193066519,0.02722541,40498.0,40497.0,0.0009374]
[1645193066918,0.02922541,40498.0,40497.0,0.0009374]
[1645193067318,0.02922541,40498.0,40496.0,0.18066367]
[1645193067518,0.31514289,40497.0,40496.0,0.24241767]
[1645193067721,0.65784193,40497.0,40496.0,0.24241767]
[1645193068320,0.63165293,40497.0,40496.0,0.24241767]
[1645193068720,0.31651004,40497.0,40496.0,0.24241767]
[1645193068923,0.63165293,40497.0,40496.0,0.24341767]
[1645193069567,0.63165293,40497.0,40496.0,0.24241767]
[1645193070771,0.3161793,40498.0,40496.0,0.24241767]
[1645193070974,0.00103641,40498.0,40496.0,0.24241767]
[1645193071168,0.3161793,40498.0,40497.0,0.35]
[1645193071371,0.00103641,40498.0,40497.0,0.382328]
[1645193071768,0.00103641,40498.0,40497.0,0.05]
[1645193073127,0.01023641,40499.0,40497.0,0.34981809]
[1645193073318,0.01023641,40499.0,40498.0,0.0497]
[1645193074719,0.01123641,40499.0,40498.0,0.0497]
[1645193075420,0.01023641,40499.0,40498.0,0.0497]
[1645193076421,0.01123641,40499.0,40498.0,0.0497]
[1645193077669,0.01023641,40499.0,40498.0,0.0497]
[1645193077868,0.3503753,40499.0,40498.0,0.0497]
[1645193078070,0.01023641,40499.0,40498.0,0.0497]
[1645193078273,0.3253793,40499.0,40498.0,0.0497]
[1645193078469,0.3253793,40499.0,40498.0,0.0507]
[1645193078870,0.3253793,40499.0,40498.0,0.001]
[1645193079470,0.32552219,40499.0,40498.0,0.001]
[1645193079669,0.32552219,40499.0,40497.0,0.36156509]
[1645193080270,0.0103793,40499.0,40497.0,0.36156509]
[1645193080469,0.0103793,40499.0,40497.0,0.36256509]
[1645193080721,0.01052219,40499.0,40497.0,0.36256509]
[1645193081123,0.01052219,40499.0,40497.0,0.30082109]
[1645193081723,0.00552219,40499.0,40498.0,0.68283866]
[1645193081927,0.48820689,40500.0,40498.0,0.82989866]
[1645193082123,0.48820689,40500.0,40499.0,1.643328]
[1645193082323,0.48820689,40500.0,40499.0,1.843028]
[1645193082521,0.11787089,40500.0,40499.0,2.83752283]
[1645193082723,0.31986372,40506.0,40501.0,1.311]
[1645193082724,0.00085342,40504.0,40501.0,1.311]
[1645193082925,0.00085342,40504.0,40503.0,1.372724]
[1645193083123,0.00085342,40504.0,40503.0,1.705052]
[1645193083323,0.00085342,40504.0,40503.0,2.05129315]
[1645193083526,0.00085342,40504.0,40503.0,2.55129315]
[1645193084123,0.00085342,40504.0,40503.0,2.60129315]
[1645193084576,0.00085342,40504.0,40503.0,2.87528143]
[1645193085778,0.00425911,40506.0,40504.0,0.00170683]
[1645193085981,0.00425911,40506.0,40504.0,1.69473483]
[1645193086181,0.00425911,40506.0,40504.0,1.89097598]
[1645193086379,0.00425911,40506.0,40504.0,1.99097598]
[1645193086880,0.002078,40513.0,40507.0,1.372722]
[1645193087082,0.002078,40513.0,40509.0,0.061718]
[1645193087283,0.002078,40513.0,40510.0,0.0497]
[1645193087698,0.002078,40513.0,40511.0,0.26865084]
[1645193087882,0.002078,40513.0,40511.0,0.31865084]
[1645193088147,0.002078,40513.0,40511.0,0.173434]
[1645193088345,0.002078,40513.0,40510.0,0.69624115]
[1645193088346,0.39379107,40512.0,40510.0,0.69624115]
[1645193088538,0.04487173,40511.0,40510.0,0.69624115]
[1645193088741,0.07106073,40511.0,40510.0,0.5]
[1645193088938,0.39367652,40511.0,40510.0,0.5]
[1645193089138,0.06610215,40511.0,40510.0,0.5]
[1645193089539,0.39366843,40511.0,40507.0,0.25543293]
[1645193089738,0.026189,40510.0,40507.0,0.25543293]
[1645193089940,0.0740591,40509.0,40507.0,0.30543293]
[1645193090539,0.026189,40508.0,40507.0,0.25543293]
[1645193090939,0.0740591,40509.0,40507.0,0.25543293]
[1645193091638,0.026189,40508.0,40507.0,0.25543293]
[1645193091871,0.0740591,40509.0,40507.0,0.30543293]
[1645193092373,0.0740591,40509.0,40507.0,0.30643293]
[1645193092571,0.026189,40508.0,40507.0,0.30643293]
[1645193092772,0.0740591,40509.0,40507.0,0.30643293]
[1645193093174,0.026189,40508.0,40507.0,0.30643293]
[1645193093372,0.0740591,40509.0,40507.0,0.30643293]
[1645193093573,0.0740591,40509.0,40507.0,0.30543293]
[1645193094373,0.0740591,40509.0,40507.0,0.30643293]
[1645193095626,0.0740591,40509.0,40507.0,0.30543293]
[1645193096422,0.0740591,40509.0,40507.0,0.30643293]
[1645193096825,0.026189,40508.0,40507.0,0.25643293]
[1645193097024,0.00109133,40508.0,40507.0,0.25723828]
[1645193097622,0.00109133,40508.0,40507.0,0.25623828]
[1645193098322,0.00109133,40508.0,40507.0,0.25723828]
[1645193098723,0.00109133,40508.0,40507.0,0.30723828]
[1645193099573,0.00109133,40508.0,40507.0,0.30623828]
[1645193100474,0.00109133,40508.0,40507.0,0.30723828]
[1645193101779,0.00109133,40508.0,40507.0,0.30543293]
[1645193102379,0.00209133,40508.0,40507.0,0.30543293]
[1645193102678,0.00209133,40508.0,40507.0,0.05]
[1645193102882,0.00209133,40508.0,40506.0,0.00093958]
[1645193103134,0.02828033,40508.0,40506.0,0.00093958]
[1645193103324,0.1,40507.0,40506.0,0.00093958]
[1645193103523,0.126189,40507.0,40506.0,0.00093958]
[1645193104523,0.126189,40507.0,40506.0,0.00193958]